bitfinex/quotes_SOLUSD_20250617
["timestamp","ask_amount","ask_price","bid_price","bid_amount"]
[1750152666802,27.06,151.74,151.72,17.79454339]
[1750152667597,3.43538692,151.76,151.73,5.3434769]
[1750152667895,27.06,151.75,151.73,5.3434769]
[1750152668418,6.58688991,151.82,151.74,5.3434769]
[1750152668585,8.77769421,151.8,151.76,5.3434769]
[1750152668789,34.77769421,151.8,151.76,5.3434769]
[1750152669003,34.77769421,151.8,151.75,5.3434769]
[1750152669298,27.06,151.79,151.75,11.93283719]
[1750152669478,27.06,151.79,151.76,5.3434769]
[1750152670378,34.77769421,151.8,151.75,6.58936029]
[1750152670379,27.06,151.78,151.77,5.3434769]
[1750152670807,29.43421731,151.8,151.77,5.3434769]
[1750152671111,27.06,151.78,151.77,5.3434769]
[1750152671494,29.43421731,151.8,151.77,11.93239434]
[1750152672305,26.0,151.76,151.71,5.84]
[1750152672505,27.06,151.75,151.71,5.84]
[1750152672803,27.06,151.75,151.72,5.3434769]
[1750152673177,27.06,151.75,151.72,11.93446775]
[1750152673913,27.06,151.75,151.72,6.59099085]
[1750152676014,27.06,151.75,151.72,11.93446775]
[1750152676403,27.06,151.75,151.73,5.3434769]
[1750152676594,27.06,151.75,151.72,11.93446775]
[1750152676993,27.06,151.75,151.73,5.3434769]
[1750152678493,27.06,151.75,151.73,11.93387455]
[1750152679192,8.77769421,151.8,151.74,5.3434769]
[1750152679402,27.04,151.79,151.75,5.3434769]
[1750152679609,27.04,151.78,151.75,5.3434769]
[1750152680114,15.36531011,151.8,151.75,5.3434769]
[1750152680296,8.77769421,151.8,151.76,5.3434769]
[1750152680498,3.43421731,151.8,151.77,5.3434769]
[1750152680716,27.04,151.79,151.77,11.93234184]
[1750152680928,3.43421731,151.8,151.78,5.3434769]
[1750152681092,27.04,151.79,151.77,11.93234184]
[1750152682095,26.0,151.81,151.77,11.93234184]
[1750152682300,27.04,151.8,151.78,11.93160172]
[1750152682499,26.0,151.81,151.78,11.93160172]
[1750152682500,26.0,151.81,151.79,5.3434769]
[1750152682913,27.04,151.8,151.79,5.3434769]
[1750152683722,26.0,151.81,151.79,11.93133551]
[1750152684024,27.04,151.8,151.79,11.93133551]
[1750152684216,27.04,151.8,151.79,6.58785861]
[1750152684428,5.3434769,151.85,151.79,11.93133551]
[1750152684614,27.04,151.84,151.81,5.3434769]
[1750152684800,27.04,151.84,151.79,6.58785861]
[1750152684801,32.3834769,151.83,151.79,11.93133551]
[1750152685139,27.04,151.83,151.8,5.3434769]
[1750152685434,27.04,151.83,151.8,11.93066486]
[1750152687043,27.04,151.82,151.8,11.93066486]
[1750152687260,27.04,151.82,151.81,5.3434769]
[1750152687619,27.04,151.82,151.8,11.93066486]
[1750152689548,27.04,151.82,151.81,5.3434769]
[1750152689769,34.77637739,151.85,151.8,6.58718796]
[1750152690061,27.04,151.84,151.81,5.3434769]
[1750152690269,3.43290049,151.85,151.82,5.3434769]
[1750152690420,27.04,151.84,151.82,5.3434769]
[1750152690848,27.02,151.83,151.82,5.3434769]
[1750152691315,27.02,151.83,151.81,5.3434769]
[1750152691517,27.02,151.83,151.81,11.9304497]
[1750152692163,27.02,151.83,151.82,5.3434769]
[1750152692820,27.02,151.84,151.82,5.3434769]
[1750152693028,27.02,151.84,151.83,5.3434769]
[1750152693735,26.0,151.86,151.83,11.92956957]
[1750152693932,26.0,151.88,151.84,5.3434769]
[1750152694132,27.02,151.87,151.84,5.3434769]
[1750152694324,3.4320906,151.89,151.85,5.3434769]
[1750152694536,8.7755675,151.89,151.85,5.3434769]
[1750152694748,27.02,151.88,151.85,5.3434769]
[1750152695056,27.02,151.88,151.85,17.76866604]
[1750152695348,8.7755675,151.89,151.85,17.76866604]
[1750152695559,27.02,151.87,151.85,17.76866604]
[1750152697340,27.02,151.87,151.85,12.42543129]
[1750152698164,27.02,151.87,151.85,17.76890819]
[1750152701466,27.02,151.87,151.85,12.42543129]
[1750152701761,27.02,151.87,151.85,17.76890819]
[1750152702544,32.58334899,151.9,151.85,12.42543129]
[1750152702747,5.3434769,151.87,151.84,5.84]
[1750152702966,32.3634769,151.86,151.84,5.84]
[1750152703138,27.02,151.86,151.84,5.84]
[1750152703471,27.02,151.86,151.84,11.1834769]
[1750152704052,27.02,151.86,151.84,17.76906156]
[1750152704663,27.02,151.86,151.85,5.3434769]
[1750152705556,27.02,151.86,151.84,12.42558466]
[1750152705753,27.02,151.86,151.85,5.3434769]
[1750152706233,27.02,151.86,151.85,11.92892306]
[1750152706434,27.02,151.86,151.85,6.58544616]
[1750152708844,27.02,151.86,151.84,12.42572768]
[1750152709048,32.3634769,151.86,151.84,5.84]
[1750152709960,5.3434769,151.85,151.84,5.84]
[1750152710161,5.3434769,151.85,151.8,5.84]
[1750152710343,33.60502785,151.86,151.8,5.84]
[1750152710544,5.3434769,151.83,151.8,5.84]
[1750152710746,27.0,151.82,151.8,5.84]
[1750152711246,27.0,151.82,151.8,12.42751179]
[1750152711771,27.0,151.82,151.8,17.77098869]
[1750152711956,27.0,151.82,151.81,5.3434769]
[1750152712149,27.0,151.82,151.8,17.77098869]
[1750152715070,27.0,151.82,151.8,5.84]
[1750152715071,5.3434769,151.81,151.8,5.84]
[1750152715280,27.0,151.82,151.8,5.84]
[1750152715447,27.0,151.82,151.8,12.42760251]
[1750152715645,27.0,151.82,151.8,5.84]
[1750152716074,27.0,151.82,151.8,12.42748934]
[1750152716253,27.0,151.82,151.8,5.84]
[1750152717379,32.3434769,151.82,151.8,5.84]
[1750152717881,5.3434769,151.81,151.8,5.84]
[1750152718943,31.3434769,151.81,151.75,5.84]
[1750152719147,5.3434769,151.78,151.75,5.84]
[1750152719371,27.0,151.77,151.75,5.84]
[1750152719571,27.0,151.76,151.75,12.4297836]
[1750152720553,27.0,151.76,151.75,5.84]
[1750152721657,32.3434769,151.76,151.75,5.84]
[1750152722052,27.0,151.76,151.75,5.84]
[1750152722459,27.0,151.76,151.75,11.1834769]
[1750152722659,27.0,151.76,151.75,17.77326273]
[1750152722860,27.0,151.76,151.75,11.1834769]
[1750152723055,27.0,151.76,151.75,5.84]
[1750152723262,27.0,151.76,151.75,17.77326273]
[1750152724583,27.0,151.76,151.75,12.42978583]
[1750152724785,27.0,151.76,151.75,17.77326273]
[1750152727158,27.0,151.76,151.75,12.42978583]
[1750152727357,27.0,151.76,151.75,17.77326273]
[1750152729283,23.47000735,151.84,151.77,0.28432314]
[1750152729284,7.0045769,151.84,151.77,0.28432314]
[1750152729471,27.0,151.83,151.8,5.3434769]
[1750152729670,27.0,151.82,151.81,5.3434769]
[1750152730871,27.0,151.82,151.79,11.93134242]
[1750152731477,27.0,151.81,151.79,11.93134242]
[1750152734700,27.0,151.81,151.79,5.3434769]
[1750152734899,32.3434769,151.81,151.77,5.3434769]
[1750152735106,27.0,151.81,151.77,5.3434769]
[1750152735299,27.0,151.81,151.79,5.3434769]
[1750152736181,27.0,151.8,151.79,5.3434769]
[1750152736705,27.0,151.8,151.79,11.1634769]
[1750152736905,27.0,151.8,151.79,5.82]
[1750152737205,5.3434769,151.83,151.79,17.75148074]
[1750152737404,27.0,151.8,151.79,17.75148074]
[1750152738404,27.0,151.8,151.79,12.40800384]
[1750152738605,27.0,151.8,151.79,17.75148074]
[1750152739615,27.0,151.8,151.79,5.82]
[1750152739819,27.0,151.8,151.79,12.40804927]
[1750152739998,27.0,151.8,151.79,17.75152617]
[1750152741186,27.0,151.82,151.79,17.75152617]
[1750152741381,27.0,151.82,151.8,5.3434769]
[1750152741601,27.0,151.82,151.8,11.93082308]
[1750152742116,32.3434769,151.82,151.79,5.82]
[1750152742499,27.0,151.82,151.79,5.82]
[1750152743235,7.7622,151.82,151.72,18.02856124]
[1750152743393,5.3434769,151.78,151.74,5.3434769]
[1750152743588,27.0,151.77,151.74,5.3434769]
[1750152744287,27.0,151.77,151.74,11.93338637]
[1750152746708,27.0,151.77,151.76,5.3434769]
[1750152747686,27.0,151.77,151.74,6.58990947]
[1750152747882,27.0,151.77,151.74,11.93338637]
[1750152749002,31.3434769,151.79,151.75,5.3434769]
[1750152749205,27.0,151.78,151.75,5.3434769]
[1750152749408,27.0,151.78,151.77,5.3434769]
[1750152749610,6.58625828,151.84,151.77,11.1634769]
[1750152749611,27.0,151.8,151.77,11.1634769]
[1750152749808,27.0,151.8,151.78,5.3434769]
[1750152750187,31.3434769,151.82,151.78,5.3434769]
[1750152750387,27.0,151.81,151.78,5.3434769]
[1750152750615,27.0,151.81,151.79,6.58804927]
[1750152751505,27.0,151.81,151.78,11.93177718]
[1750152752511,27.0,151.8,151.78,11.93177718]
[1750152756224,27.0,151.8,151.79,5.3434769]
[1750152757405,27.0,151.8,151.79,11.93152617]
[1750152757592,26.0,151.82,151.79,11.93152617]
[1750152758012,27.0,151.81,151.79,11.93152617]
[1750152759317,5.3434769,151.86,151.8,5.3434769]
[1750152759515,55.45407341,151.85,151.81,5.3434769]
[1750152759717,56.43307057,151.85,151.81,5.3434769]
[1750152760026,29.43307057,151.85,151.81,5.3434769]
[1750152760192,27.0,151.84,151.81,5.3434769]
[1750152760394,27.0,151.84,151.81,11.93051013]
[1750152760803,38.92943518,151.84,151.8,5.3434769]
[1750152761007,5.3434769,151.83,151.79,11.93138376]
[1750152762711,5.3434769,151.83,151.8,5.82]
[1750152763113,5.3434769,151.81,151.8,5.82]
[1750152763311,32.3434769,151.81,151.8,5.82]
[1750152769821,32.3434769,151.81,151.78,12.40836879]
[1750152771645,27.0,151.81,151.78,12.40836879]
[1750152773117,27.0,151.81,151.78,17.75184569]
[1750152773317,27.0,151.81,151.79,5.3434769]
[1750152773516,27.0,151.81,151.78,17.75184569]
[1750152773943,5.3434769,151.8,151.78,5.82]
[1750152774241,32.3234769,151.79,151.78,5.82]
[1750152775042,67.36672273,151.79,151.78,5.82]
[1750152775241,72.27636925,151.79,151.78,5.82]
[1750152775445,72.27636925,151.79,151.73,5.82]
[1750152775751,5.3434769,151.74,151.73,5.82]
[1750152775944,32.3234769,151.74,151.73,5.82]
[1750152776120,26.98,151.74,151.73,5.82]
[1750152776315,32.3234769,151.74,151.73,5.82]
[1750152776519,32.3234769,151.74,151.69,41.38307193]
[1750152776741,5.3434769,151.7,151.68,12.41269727]
[1750152776925,26.98,151.69,151.68,12.41269727]
[1750152777141,26.98,151.69,151.68,5.82]
[1750152777142,32.3234769,151.69,151.68,5.82]
[1750152778323,26.98,151.69,151.68,17.7563039]
[1750152779144,4.89973737,151.75,151.7,6.59195781]
[1750152779145,26.98,151.71,151.7,6.59195781]
[1750152779328,5.3434769,151.75,151.7,11.93543471]
[1750152779522,26.98,151.74,151.7,11.93543471]
[1750152780448,32.3234769,151.74,151.7,6.59195781]
[1750152781236,32.3234769,151.74,151.7,11.93543471]
[1750152781545,5.3434769,151.73,151.71,5.82]
[1750152781743,26.98,151.72,151.71,5.82]
[1750152781943,32.3234769,151.72,151.71,5.82]
[1750152783240,38.91456574,151.72,151.71,5.82]
[1750152783557,32.3234769,151.72,151.71,5.82]
[1750152785337,38.91456574,151.72,151.71,5.82]
[1750152786362,32.3234769,151.72,151.71,5.82]
[1750152786533,27.0,151.72,151.71,5.82]
[1750152787238,32.3434769,151.72,151.71,5.82]
[1750152788831,27.0,151.72,151.71,5.82]
[1750152789364,28.95412563,151.73,151.71,17.7550002]
[1750152789549,55.95412563,151.73,151.71,17.7550002]
[1750152790027,28.95412563,151.73,151.72,5.3434769]
[1750152790228,55.95412563,151.73,151.72,5.3434769]
[1750152790427,55.95412563,151.73,151.71,12.4115233]
[1750152790428,55.95412563,151.73,151.71,17.7550002]
[1750152790836,55.95412563,151.73,151.72,5.3434769]
[1750152791457,55.95412563,151.73,151.72,11.93456574]
[1750152792146,28.95412563,151.73,151.72,11.93456574]
[1750152792834,28.95412563,151.73,151.72,30.86853774]
[1750152795557,55.95412563,151.73,151.71,12.41133083]
[1750152796552,55.95412563,151.73,151.71,17.75480773]
[1750152798273,55.95412563,151.73,151.71,5.82]
[1750152799060,5.3434769,151.72,151.66,58.77368806]
[1750152799264,5.3434769,151.68,151.67,5.82]
[1750152799467,26.98,151.68,151.67,5.82]
[1750152800385,32.3234769,151.68,151.67,5.82]
[1750152800593,38.9163039,151.68,151.67,5.82]
[1750152800772,44.2597808,151.68,151.62,5.82]
[1750152801090,5.3434769,151.64,151.62,5.82]
[1750152801272,26.98,151.63,151.62,5.82]
[1750152801588,32.3234769,151.63,151.62,5.82]
[1750152804672,26.98,151.63,151.62,5.82]
[1750152804877,26.98,151.63,151.62,17.75891285]
[1750152805079,26.98,151.63,151.62,12.41543595]
[1750152806296,32.3234769,151.63,151.62,5.82]
[1750152806469,26.98,151.63,151.62,5.82]
[1750152809088,32.3234769,151.63,151.62,5.82]
[1750152810500,38.91847788,151.63,151.62,5.82]
[1750152810818,38.91847788,151.63,151.57,6.9610769]
[1750152810819,38.91847788,151.63,151.57,19.37852824]
[1750152810992,5.3434769,151.61,151.57,19.37852824]
[1750152811303,27.0,151.6,151.57,19.37852824]
[1750152811873,27.0,151.6,151.57,17.76092824]
[1750152812674,27.0,151.6,151.58,5.3434769]
[1750152813073,26.0,151.63,151.59,5.3434769]
[1750152813315,27.0,151.62,151.6,5.3434769]
[1750152813510,27.0,151.62,151.59,5.3434769]
[1750152813707,5.3434769,151.61,151.57,12.41745134]
[1750152814003,32.3434769,151.6,151.57,12.41745134]
[1750152814632,32.3434769,151.6,151.57,5.82]
[1750152814803,5.3434769,151.59,151.57,5.82]
[1750152814991,27.0,151.58,151.57,5.82]
[1750152815412,27.0,151.58,151.57,12.41761166]
[1750152815796,3.43826664,151.64,151.57,53.18908972]
[1750152815998,27.0,151.63,151.61,5.3434769]
[1750152816224,27.0,151.62,151.6,18.933972]
[1750152816421,27.0,151.62,151.61,5.3434769]
[1750152817530,27.0,151.62,151.6,18.933972]
[1750152817690,27.0,151.62,151.61,6.59587098]
[1750152817894,27.0,151.62,151.61,11.93934788]
[1750152818110,27.0,151.62,151.61,6.59587098]
[1750152818340,27.0,151.62,151.61,11.93934788]
[1750152819490,5.3434769,151.66,151.61,11.93934788]
[1750152819794,32.3434769,151.65,151.61,11.93934788]
[1750152820534,32.3434769,151.65,151.61,6.59587098]
[1750152820709,32.3434769,151.65,151.61,11.93934788]
[1750152821240,32.3434769,151.65,151.61,6.59587098]
[1750152821435,5.3434769,151.64,151.6,17.75971942]
[1750152821589,5.3434769,151.63,151.6,12.41624252]
[1750152821795,27.0,151.62,151.6,12.41624252]
[1750152822327,27.0,151.62,151.6,17.75971942]
[1750152825609,27.0,151.62,151.6,12.41624252]
[1750152826617,27.0,151.62,151.6,17.75971942]
[1750152827511,27.0,151.62,151.6,12.41624252]
[1750152827715,27.0,151.62,151.6,17.75971942]
[1750152828107,27.0,151.62,151.61,5.3434769]
[1750152828308,5.3434769,151.66,151.61,5.3434769]
[1750152828514,32.3434769,151.65,151.6,12.41624252]
[1750152828794,5.3434769,151.64,151.6,12.41624252]
[1750152829304,5.3434769,151.64,151.6,17.75971942]
[1750152830836,5.3434769,151.63,151.6,12.41624252]
[1750152831121,27.0,151.62,151.6,12.41624252]
[1750152831330,27.0,151.62,151.61,5.3434769]
[1750152831534,13.2559769,151.69,151.62,18.64964886]
[1750152831695,27.0,151.68,151.65,5.3434769]
[1750152831900,30.43621173,151.68,151.65,5.3434769]
[1750152832101,30.43621173,151.68,151.64,5.3434769]
[1750152832312,27.0,151.67,151.64,5.3434769]
[1750152832536,27.0,151.67,151.65,6.59413122]
[1750152832905,38.27073797,151.7,151.65,6.59413122]
[1750152832906,12.27073797,151.7,151.66,5.3434769]
[1750152833124,12.27073797,151.7,151.69,5.3434769]
[1750152833309,39.27073797,151.7,151.69,5.3434769]
[1750152833511,12.27073797,151.7,151.68,5.3434769]
[1750152833711,27.0,151.69,151.68,5.3434769]
[1750152833926,12.27073797,151.7,151.68,5.3434769]
[1750152834129,27.0,151.69,151.68,5.3434769]
[1750152834334,27.0,151.69,151.67,11.1634769]
[1750152834532,27.0,151.69,151.67,12.41301245]
[1750152834744,27.0,151.69,151.67,17.75648935]
[1750152835038,27.0,151.69,151.67,5.82]
[1750152835331,27.0,151.69,151.67,12.41325428]
[1750152836316,27.0,151.69,151.67,5.82]
[1750152836511,27.0,151.69,151.67,12.41325442]
[1750152836927,27.0,151.69,151.67,5.82]
[1750152839438,12.27073797,151.7,151.67,17.75671828]
[1750152839738,12.27073797,151.7,151.69,5.3434769]
[1750152839907,39.27073797,151.7,151.69,5.3434769]
[1750152840329,12.27073797,151.7,151.69,5.3434769]
[1750152840541,39.27073797,151.7,151.69,5.3434769]
[1750152841038,39.27073797,151.7,151.69,11.93586927]
[1750152846724,39.25073797,151.7,151.69,11.93586927]
[1750152847420,51.18619043,151.7,151.65,5.8]
[1750152847618,5.3434769,151.68,151.65,5.8]
[1750152847846,26.98,151.67,151.65,5.8]
[1750152848014,26.98,151.66,151.65,17.73760812]
[1750152848631,26.98,151.66,151.65,5.8]
[1750152850830,38.91717332,151.66,151.65,5.8]
[1750152851354,32.3234769,151.66,151.65,5.8]
[1750152851521,33.57369642,151.66,151.65,5.8]
[1750152851722,38.91717332,151.66,151.65,5.8]
[1750152854149,33.57369642,151.66,151.65,5.8]
[1750152854357,38.91717332,151.66,151.65,5.8]
[1750152856050,38.91717332,151.66,151.61,5.3434769]
[1750152856256,5.3434769,151.65,151.61,5.3434769]
[1750152856428,27.0,151.64,151.61,5.3434769]
[1750152856832,27.0,151.64,151.61,11.93923305]
[1750152857548,27.0,151.64,151.62,5.3434769]
[1750152857924,27.0,151.64,151.61,11.93923305]
[1750152858452,27.0,151.64,151.61,5.3434769]
[1750152859327,27.0,151.64,151.62,5.3434769]
[1750152859844,27.0,151.64,151.6,5.8]
[1750152860041,27.0,151.64,151.62,5.3434769]
[1750152860451,27.0,151.64,151.63,5.3434769]
[1750152862439,27.0,151.64,151.63,11.93813712]
[1750152863837,27.0,151.65,151.63,11.93813712]
[1750152864641,27.0,151.65,151.64,5.3434769]
[1750152866165,27.0,151.65,151.64,11.93804297]
[1750152866765,27.0,151.65,151.63,17.7383398]
[1750152869142,27.0,151.65,151.64,11.93804297]
[1750152872460,5.3434769,151.68,151.64,11.93804297]
[1750152872676,3.43516543,151.69,151.65,5.3434769]
[1750152872838,43.61421487,151.7,151.65,5.3434769]
[1750152872839,27.0,151.67,151.65,5.3434769]
[1750152873042,27.0,151.66,151.64,11.93804297]
[1750152873267,27.0,151.66,151.64,6.59456607]
[1750152873769,27.0,151.65,151.64,11.93804297]
[1750152876161,5.3434769,151.68,151.64,6.59456607]
[1750152876370,27.0,151.66,151.63,17.73830354]
[1750152876564,27.0,151.65,151.63,17.73830354]
[1750152876869,5.3434769,151.64,151.63,5.8]
[1750152877169,31.3434769,151.64,151.58,5.8]
[1750152877359,5.3434769,151.62,151.58,11.1434769]
[1750152877553,27.0,151.61,151.58,11.1434769]
[1750152878066,27.0,151.61,151.59,5.3434769]
[1750152879249,27.0,151.61,151.58,12.39714909]
[1750152879450,32.3434769,151.61,151.58,12.39714909]
[1750152879857,27.0,151.61,151.58,12.39714909]
[1750152880263,32.3434769,151.61,151.58,12.39714909]
[1750152880459,5.3434769,151.6,151.58,5.8]
[1750152881064,5.3434769,151.59,151.52,58.81962496]
[1750152881267,5.3434769,151.57,151.53,5.3434769]
[1750152881580,27.0,151.56,151.53,5.3434769]
[1750152881879,27.0,151.55,151.53,5.3434769]
[1750152882669,27.0,151.55,151.54,6.59891777]
[1750152883862,27.0,151.55,151.53,6.59925219]
[1750152885161,32.3434769,151.55,151.52,58.81962057]
[1750152885857,27.0,151.55,151.52,58.81962057]
[1750152887052,27.0,151.55,151.52,64.16309747]
[1750152888983,27.0,151.55,151.52,58.81962057]
[1750152889161,27.0,151.55,151.52,57.5634769]
[1750152889684,27.0,151.55,151.51,5.8]
[1750152889685,32.3434769,151.55,151.51,5.8]
[1750152889890,5.3434769,151.53,151.51,5.8]
[1750152890061,27.02,151.52,151.51,12.40019588]
[1750152890661,27.02,151.52,151.51,5.8]
[1750152891970,32.3634769,151.52,151.51,5.8]
[1750152892178,38.9632657,151.52,151.51,5.8]
[1750152892871,32.3634769,151.52,151.51,5.8]
[1750152894181,38.9632657,151.52,151.51,5.8]
[1750152894494,38.9632657,151.52,151.46,17.76558485]
[1750152894676,5.3434769,151.5,151.46,17.76558485]
[1750152895002,32.3634769,151.49,151.46,5.82]
[1750152895998,32.3634769,151.49,151.46,12.42210004]
[1750152896208,27.02,151.49,151.46,17.76557694]
[1750152897297,27.02,151.49,151.46,5.82]
[1750152897497,27.02,151.49,151.46,12.42232031]
[1750152897788,32.60003589,151.52,151.46,12.42232031]
[1750152897789,6.59761166,151.57,151.48,5.3434769]
[1750152897981,5.3434769,151.56,151.52,5.3434769]
[1750152898172,61.80170448,151.56,151.52,11.94325779]
[1750152898564,61.80170448,151.56,151.48,41.75710085]
[1750152898565,5.3434769,151.54,151.49,6.60109578]
[1750152898880,32.3834769,151.53,151.49,11.94457268]
[1750152899074,27.04,151.52,151.49,11.94457268]
[1750152899279,5.3434769,151.51,151.47,6.60196738]
[1750152899705,5.3434769,151.49,151.46,12.42227128]
[1750152899868,27.04,151.48,151.46,12.42227128]
[1750152900297,27.04,151.48,151.46,5.82]
[1750152900575,5.3434769,151.47,151.46,5.82]
[1750152901974,27.04,151.48,151.46,5.82]
[1750152902291,5.3434769,151.47,151.46,5.82]
[1750152902592,31.3434769,151.47,151.46,5.82]
[1750152903091,31.3434769,151.47,151.41,11.1634769]
[1750152903269,5.3434769,151.44,151.41,5.82]
[1750152903474,27.04,151.43,151.41,5.82]
[1750152903673,27.04,151.43,151.41,12.42456401]
[1750152903883,27.04,151.43,151.42,5.3434769]
[1750152904196,27.04,151.43,151.42,11.9476243]
[1750152907990,27.04,151.43,151.42,30.8815963]
[1750152908192,1.5839,151.51,151.43,18.933972]
[1750152908369,27.04,151.5,151.47,5.3434769]
[1750152908796,27.04,151.49,151.47,5.3434769]
[1750152909001,26.0,151.51,151.48,5.3434769]
[1750152909199,8.14293118,151.55,151.5,5.3434769]
[1750152909200,1.5443,151.55,151.5,5.3434769]
[1750152909404,32.3834769,151.54,151.5,5.3434769]
[1750152909610,58.3834769,151.54,151.5,5.3434769]
[1750152909787,5.3434769,151.53,151.47,5.82]
[1750152910101,5.3434769,151.52,151.49,6.60109578]
[1750152910402,27.04,151.51,151.49,6.60109578]
[1750152910605,27.04,151.51,151.48,11.94487279]
[1750152910907,58.3834769,151.51,151.47,11.1634769]
[1750152911689,53.04,151.51,151.47,11.1634769]
[1750152911907,53.04,151.51,151.47,5.82]
[1750152912103,27.04,151.51,151.49,5.3434769]
[1750152912401,27.04,151.51,151.49,11.94443442]
[1750152912777,26.0,151.52,151.49,11.94443442]
[1750152912989,27.04,151.51,151.49,11.94443442]
[1750152913176,27.04,151.51,151.5,5.3434769]
[1750152913906,27.04,151.51,151.49,11.94443442]
[1750152914278,27.04,151.51,151.49,6.60095752]
[1750152914482,5.3434769,151.53,151.49,11.94443442]
[1750152914700,27.04,151.52,151.49,11.94443442]
[1750152915714,27.04,151.52,151.5,5.3434769]
[1750152915884,27.04,151.52,151.51,5.3434769]
[1750152916409,27.04,151.52,151.49,11.94443442]
[1750152917009,3.43822758,151.56,151.51,5.3434769]
[1750152917306,5.3434769,151.54,151.5,5.3434769]
[1750152917476,5.3434769,151.53,151.49,11.94443442]
[1750152917676,27.02,151.52,151.49,11.94443442]
[1750152918104,27.02,151.52,151.5,5.3434769]
[1750152918609,27.02,151.52,151.51,5.3434769]
[1750152919198,29.43308662,151.57,151.51,5.3434769]
[1750152919401,27.02,151.56,151.54,5.3434769]
[1750152919604,27.02,151.56,151.53,11.94246597]
[1750152919789,27.02,151.55,151.53,6.59898907]
[1750152920114,29.43308662,151.57,151.53,6.59898907]
[1750152920115,29.43308662,151.57,151.54,5.3434769]
[1750152920288,27.02,151.56,151.53,11.94246597]
[1750152922791,27.02,151.55,151.54,5.3434769]
[1750152922992,27.02,151.55,151.52,11.94312853]
[1750152923714,27.02,151.55,151.51,6.60003455]
[1750152923914,32.3634769,151.55,151.51,6.60003455]
[1750152924300,5.3434769,151.54,151.51,6.60003455]
[1750152925509,27.02,151.55,151.51,6.60003455]
[1750152925700,5.3434769,151.53,151.5,6.60063035]
[1750152925917,32.3634769,151.52,151.5,6.60063035]
[1750152926415,27.02,151.52,151.5,6.60063035]
[1750152926716,27.02,151.52,151.51,5.3434769]
[1750152927621,27.02,151.52,151.51,11.9437013]
[1750152929218,5.3434769,151.54,151.51,6.6002244]
[1750152929398,27.02,151.53,151.51,6.6002244]
[1750152931120,27.02,151.53,151.5,6.60056046]
[1750152931327,32.3634769,151.53,151.5,6.60056046]
[1750152931503,27.02,151.53,151.5,6.60056046]
[1750152931702,27.02,151.53,151.5,11.94403736]
[1750152932907,27.02,151.53,151.5,6.60056046]
[1750152933398,27.02,151.53,151.5,11.94403736]
[1750152933597,27.02,151.53,151.5,6.60056046]
[1750152933825,5.3434769,151.52,151.47,5.82]
[1750152934045,5.3434769,151.52,151.38,10.0]
[1750152934046,5.3434769,151.48,151.43,6.60371128]
[1750152934220,5.3434769,151.46,151.43,12.42371128]
[1750152934520,5.3434769,151.52,151.43,12.42371128]
[1750152934521,32.3634769,151.45,151.43,5.82]
[1750152934827,32.3634769,151.44,151.43,5.82]
[1750152935400,32.3634769,151.44,151.34,1.6468]
[1750152935728,5.3434769,151.41,151.37,6.60602923]
[1750152935967,27.02,151.4,151.37,6.60602923]
[1750152936423,27.02,151.4,151.36,17.77008215]
[1750152936609,32.3634769,151.4,151.36,5.82]
[1750152936793,5.3434769,151.39,151.36,5.82]
[1750152936997,5.3434769,151.39,151.36,12.42675214]
[1750152937399,5.3434769,151.38,151.36,5.82]
[1750152937700,32.3634769,151.37,151.36,5.82]
[1750152938638,27.02,151.37,151.36,5.82]
[1750152938802,27.02,151.37,151.3,18.16974861]
[1750152938803,32.3634769,151.37,151.33,6.60798146]
[1750152939001,5.3434769,151.36,151.33,6.60798146]
[1750152939499,32.3634769,151.37,151.33,11.95145836]
[1750152940640,5.3434769,151.36,151.33,6.60798146]
[1750152941301,32.3634769,151.37,151.33,11.95145836]
[1750152942018,32.3634769,151.37,151.33,5.3434769]